fUSD/lending_fUSD_20240916
["ID","MTS","AMOUNT","RATE_DAILY","PERIOD"]
[338337636,1726513832329,-150.0,0.000143,2]
[338337638,1726513832338,-357.5,0.000143,2]
[338337639,1726513832347,-150.0,0.000143,2]
[338337641,1726513832356,-150.0,0.0001452,2]
[338337643,1726513832365,-9311.0,0.0001452,2]
[338337645,1726513832374,-1146.0,0.0001452,2]
[338337647,1726513832385,-500.0,0.00014521,2]
[338337649,1726513832394,-4258.887915,0.00014794,2]
[338337651,1726513832403,-1419.629305,0.00014794,2]
[338337653,1726513832413,-451.83,0.000148,2]
[338337655,1726513832422,-150.0,0.00014802,2]
[338337657,1726513832431,-286.759,0.00014802,2]
[338337659,1726513832440,-767.561,0.00014802,2]
[338337661,1726513832449,-995.024,0.00014802,2]
[338337663,1726513832458,-798.826,0.00014802,2]
[338337665,1726513832468,-1919.0,0.00014802,2]
[338337667,1726513832477,-3000.0,0.0001485,2]
[338337669,1726513832486,-3000.0,0.0001485,2]
[338337671,1726513832496,-3000.0,0.0001486,2]
[338337673,1726513832505,-500.0,0.0001488,2]
[338337675,1726513832514,-177.56180833,0.0001489,2]
[338337677,1726513832523,-221.61260684,0.0001489,2]
[338337679,1726513832532,-156.2770892,0.0001489,2]
[338337681,1726513832541,-167.53010769,0.000149,2]
[338337683,1726513832550,-156.47437685,0.000149,2]
[338337685,1726513832562,-156.47437685,0.000149,2]
[338337687,1726513832572,-156.47437685,0.000149,2]
[338337689,1726513832581,-156.47437685,0.000149,2]
[338337691,1726513832591,-156.47437685,0.000149,2]
[338337693,1726513832600,-156.47437685,0.000149,2]
[338337695,1726513832609,-156.47437685,0.000149,2]
[338337697,1726513832619,-156.47437685,0.000149,2]
[338337698,1726513832628,-156.47437685,0.000149,2]
[338337700,1726513832637,-156.47437685,0.000149,2]
[338337702,1726513832647,-156.47437685,0.000149,2]
[338337704,1726513832656,-156.47437685,0.000149,2]
[338337706,1726513832665,-156.47437685,0.000149,2]
[338337708,1726513832676,-156.47437685,0.000149,2]
[338337710,1726513832685,-156.47437685,0.000149,2]
[338337712,1726513832695,-156.47437685,0.000149,2]
[338337714,1726513832704,-156.47437685,0.000149,2]
[338337716,1726513832713,-156.47437685,0.000149,2]
[338337718,1726513832727,-156.47437685,0.000149,2]
[338337720,1726513832736,-156.97,0.000149,2]
[338337722,1726513832746,-625.97250741,0.000149,2]
[338337724,1726513832755,-625.97250741,0.000149,2]
[338337726,1726513832765,-625.97250741,0.000149,2]
[338337728,1726513832775,-625.97250741,0.000149,2]
[338337730,1726513832784,-625.97250741,0.000149,2]
[338337732,1726513832794,-625.97250741,0.000149,2]
[338337734,1726513832804,-625.97250741,0.000149,2]
[338337736,1726513832814,-625.97250741,0.000149,2]
[338337738,1726513832824,-625.97250741,0.000149,2]
[338337740,1726513832834,-625.97250741,0.000149,2]
[338337741,1726513832843,-625.97250741,0.000149,2]
[338337743,1726513832852,-625.97250741,0.000149,2]
[338337745,1726513832862,-625.97250741,0.000149,2]
[338337747,1726513832871,-625.97250741,0.000149,2]
[338337749,1726513832881,-625.97250741,0.000149,2]
[338337751,1726513832891,-625.97250741,0.000149,2]
[338337753,1726513832901,-117.90296029,0.000149,2]
[338337755,1726513832914,-508.06954712,0.000149,2]
[338337757,1726513832923,-625.97250741,0.000149,2]
[338337759,1726513832933,-625.97250741,0.000149,2]
[338337761,1726513832942,-626.47,0.000149,2]
[338337763,1726513832951,-1200.15367825,0.000149,2]
[338337765,1726513832961,-1200.15367825,0.000149,2]
[338337767,1726513832970,-1200.15367825,0.000149,2]
[338337769,1726513832979,-1200.15367825,0.000149,2]
[338337771,1726513832988,-1200.15367825,0.000149,2]
[338337773,1726513832998,-1200.15367825,0.000149,2]
[338337775,1726513833007,-1200.15367825,0.000149,2]
[338337777,1726513833017,-1200.15367825,0.000149,2]
[338337779,1726513833027,-1200.15367825,0.000149,2]
[338337781,1726513833036,-1200.15367825,0.000149,2]
[338337783,1726513833046,-1200.15367825,0.000149,2]
[338337785,1726513833055,-1200.15367825,0.000149,2]
[338337787,1726513833065,-1200.15367825,0.000149,2]
[338337789,1726513833074,-1200.15367825,0.000149,2]
[338337791,1726513833084,-1200.15367825,0.000149,2]
[338337793,1726513833095,-1200.15367825,0.000149,2]
[338337795,1726513833104,-1200.15367825,0.000149,2]
[338337797,1726513833116,-1200.15367825,0.000149,2]
[338337799,1726513833126,-1200.15367825,0.000149,2]
[338337801,1726513833137,-1200.65,0.000149,2]
[338337803,1726513833147,-4800.689713,0.000149,2]
[338337805,1726513833157,-4800.689713,0.000149,2]
[338337807,1726513833167,-4800.689713,0.000149,2]
[338337809,1726513833176,-4800.689713,0.000149,2]
[338337810,1726513833185,-4800.689713,0.000149,2]
[338337812,1726513833195,-4800.689713,0.000149,2]
[338337814,1726513833205,-4800.689713,0.000149,2]
[338337816,1726513833214,-4800.689713,0.000149,2]
[338337818,1726513833224,-4800.689713,0.000149,2]
[338337820,1726513833233,-4800.689713,0.000149,2]
[338337822,1726513833243,-4800.689713,0.000149,2]
[338337824,1726513833252,-4800.689713,0.000149,2]
[338337826,1726513833261,-4800.689713,0.000149,2]
[338337828,1726513833271,-4800.689713,0.000149,2]
[338337830,1726513833280,-4800.689713,0.000149,2]
[338337832,1726513833289,-4800.689713,0.000149,2]
[338337834,1726513833299,-4800.689713,0.000149,2]
[338337836,1726513833310,-4800.689713,0.000149,2]
[338337838,1726513833328,-4800.689713,0.000149,2]
[338337840,1726513833338,-4801.18,0.000149,2]
[338337842,1726513833347,-1280.77371811,0.000149,2]
[338337844,1726513833357,-1280.77371811,0.000149,2]
[338337846,1726513833366,-1280.77371811,0.000149,2]
[338337848,1726513833376,-1280.77371811,0.000149,2]
[338337850,1726513833386,-1280.77371811,0.000149,2]
[338337852,1726513833395,-1280.77371811,0.000149,2]
[338337854,1726513833406,-1280.77371811,0.000149,2]
[338337856,1726513833415,-1280.77371811,0.000149,2]
[338337858,1726513833424,-1280.77371811,0.000149,2]
[338337860,1726513833434,-1280.77371811,0.000149,2]
[338337861,1726513833444,-1280.77371811,0.000149,2]
[338337862,1726513833453,-1280.77371811,0.000149,2]
[338337863,1726513833462,-1280.77371811,0.000149,2]
[338337864,1726513833471,-1280.77371811,0.000149,2]
[338337865,1726513833480,-1280.77371811,0.000149,2]
[338337866,1726513833489,-1280.77371811,0.000149,2]
[338337867,1726513833499,-1280.77371811,0.000149,2]
[338337868,1726513833508,-1280.77371811,0.000149,2]
[338337869,1726513833517,-1280.77371811,0.000149,2]
[338337870,1726513833526,-1281.27,0.000149,2]
[338337871,1726513833536,-5123.16987242,0.000149,2]
[338337872,1726513833544,-5123.16987242,0.000149,2]
[338337873,1726513833557,-4250.9088895,0.000149,2]
[338337874,1726513833570,-303.80590468,0.000149,2]
[338337875,1726513833581,-568.45507824,0.000149,2]
[338337876,1726513833591,-3358.01592822,0.000149,2]
[338337877,1726513833602,-1765.1539442,0.000149,2]
[338337879,1726513833611,-672.84238984,0.000149,2]
[338337881,1726513833622,-4450.32748258,0.000149,2]
[338337883,1726513833631,-249.67251742,0.000149,2]
[338337885,1726513833644,-428.45648914,0.000149,2]
[338337887,1726513833655,-711.01118688,0.000149,2]
[338337890,1726513833665,-1827.91072361,0.000149,2]
[338337892,1726513833676,-1906.11895537,0.000149,2]
[338337894,1726513833686,-3594.65231188,0.000149,2]
[338337896,1726513833697,-1528.51756054,0.000149,2]
[338337897,1726513833706,-968.98614108,0.000149,2]
[338337900,1726513833721,-4154.18373134,0.000149,2]
[338337902,1726513833732,-393.91026203,0.000149,2]
[338337904,1726513833744,-4729.25961039,0.000149,2]
[338337906,1726513833754,-2481.74038961,0.000149,2]
[338337908,1726513833766,-486.59595781,0.000149,2]
[338337910,1726513833779,-2154.833525,0.000149,2]
[338337912,1726513833788,-1448.70338401,0.000149,2]
[338337914,1726513833801,-3674.46648841,0.000149,2]
[338337916,1726513833814,-5123.16987242,0.000149,2]
[338337918,1726513833823,-5123.16987242,0.000149,2]
[338337920,1726513833833,-5123.16987242,0.000149,2]
[338337922,1726513833843,-5123.16987242,0.000149,2]
[338337924,1726513833852,-5123.16987242,0.000149,2]
[338337926,1726513833862,-5123.16987242,0.000149,2]
[338337928,1726513833871,-5123.16987242,0.000149,2]
[338337930,1726513833881,-5123.16987242,0.000149,2]
[338337932,1726513833891,-5123.66,0.000149,2]
[338337934,1726513833901,-4431.9236787,0.000149,2]
[338337936,1726513833910,-668.77509276,0.0001494,2]
[338337938,1726513833925,-1079.0,0.0001452,2]
[338337940,1726513833934,-2331.22490724,0.0001494,2]
[338337942,1726513833944,-153.25,0.0001497,2]
[338337944,1726513833953,-158.31767819,0.0001497,2]
[338337946,1726513833963,-500.0,0.00014973,2]
[338337948,1726513833972,-1783.20741457,0.0001498,3]
[338337951,1726513833983,-289.8028466,0.0001498,3]
[338337953,1726513833994,-23390.05705766,0.0001498,3]
[338337955,1726513834006,-192305.53106217,0.0001498,3]
[338337957,1726513834015,-132713.022939,0.0001498,3]
[338337959,1726513834024,-12018.18842317,0.00014985,2]
[338337961,1726513834033,-44237.6743129,0.00014987,3]
[338337962,1726513834043,-20593.64,0.00014989,2]
[338337964,1726513834052,-110594.185782,0.0001499,3]
[338337966,1726513834065,-153.25,0.0001499,2]
[338337968,1726513834074,-568477.79726171,0.0001499,3]
[338337971,1726513834086,-52594.15252274,0.0001499,3]
[338337973,1726513834098,-66777.04945576,0.0001499,3]
[338337975,1726513834108,-299.6343321,0.0001499,2]
[338337977,1726513834118,-325.6117605,0.0001499,2]
[338337979,1726513834127,-351.5891889,0.0001499,2]
[338337981,1726513834136,-377.5666174,0.0001499,2]
[338337983,1726513834146,-403.5440458,0.0001499,2]
[338337985,1726513834155,-153.25,0.0001499,2]
[338337987,1726513834164,-153.25,0.0001499,2]
[338337989,1726513834173,-153.25,0.0001499,2]
[338337991,1726513834182,-153.25,0.0001499,2]
[338337993,1726513834191,-153.25,0.0001499,2]
[338337995,1726513834200,-12053.33808789,0.0001499,2]
[338337996,1726513834210,-12018.18842317,0.00014997,2]
[338337998,1726513834219,-84127.31896219,0.00014997,2]
[338338000,1726513834228,-373.3484296,0.00014998,2]
[338338002,1726513834237,-273.6569037,0.00014998,2]
[338338004,1726513834246,-602.61580312,0.00014998,2]
[338338006,1726513834255,-150.01,0.00014999,2]
[338338008,1726513834265,-450.7357935,0.00014999,2]
[338338010,1726513834274,-15352.85271156,0.00015,2]
[338338012,1726513834285,-978.62989679,0.00015,2]
[338338015,1726513834296,-686.70513767,0.00015,2]
[338338017,1726513834308,-1132.38722525,0.00015,2]
[338338019,1726513834319,-6000.0,0.00015,2]
[338338021,1726513834330,-1181.26213134,0.00015,2]
[338338023,1726513834345,-1092.85082834,0.00015,2]
[338338025,1726513834356,-2686.65209013,0.00015,2]
[338338027,1726513834367,-8774.31523528,0.00015,2]
[338338354,1726513837787,-316.87933935,0.000148,2]
[338338359,1726513837831,-80.52766925,0.000148,2]
[338338361,1726513837840,-212.72150978,0.00014979,2]
[338338363,1726513837852,-287.27849022,0.00014979,2]
[338338365,1726513837861,-500.0,0.00014979,2]
[338338367,1726513837871,-138.28321519,0.00014979,2]
[338338369,1726513837886,-361.71678481,0.00014979,2]
[338338371,1726513837896,-631.4859256,0.00014979,2]
[338338373,1726513837905,-500.0,0.00014979,2]
[338338375,1726513837914,-500.0,0.00014979,2]
[338338377,1726513837923,-500.0,0.00014979,2]
[338338379,1726513837932,-150.97348678,0.00014979,2]
[338338381,1726513837943,-349.02651322,0.00014979,2]
[338338383,1726513837952,-500.0,0.00014979,2]
[338338385,1726513837961,-500.0,0.00014979,2]
[338338387,1726513837970,-6453.51638589,0.00015,2]
[338338389,1726513837981,-6016.27157419,0.00015,2]
[338338391,1726513837992,-462.45588772,0.00015,2]
[338338393,1726513838003,-461.27657119,0.00015,2]
[338338395,1726513838014,-7958.54185658,0.00015,2]
[338338397,1726513838025,-1087.70594795,0.00015,2]
[338338400,1726513838035,-5340.98495427,0.00015,2]
[338338402,1726513838046,-338.26352533,0.00015,2]
[338338405,1726513838073,-297323.66781885,0.00015,2]
[338338407,1726513838082,-514823.00289224,0.00015,2]
[338338409,1726513838093,-6470.20833297,0.00015,2]
[338338411,1726513838104,-729.66,0.00015,2]
[338338434,1726513839738,-397.40700856,0.00014814,2]
[338338435,1726513839749,-300.490529,0.00014999,2]
[338338436,1726513839758,-5161.57057859,0.00015,2]
[338338437,1726513839805,-1539.999995,0.00015,2]
[338338438,1726513839817,-3430.0000001,0.00015,2]
[338338439,1726513839828,-1360.8,0.00015,2]
[338338440,1726513839979,-31041.6694525,0.00015,2]
[338338441,1726513839991,-419.83121658,0.00015,2]
[338338442,1726513840001,-1505.04594099,0.00015,2]
[338338443,1726513840013,-1341.45000002,0.00015,2]
[338338444,1726513840024,-262.894995,0.00015,2]
[338338445,1726513840035,-871.3461888,0.00015,2]
[338338446,1726513840046,-934.05593826,0.00015,2]
[338338447,1726513840056,-6564.8223725,0.00015,2]
[338338448,1726513840069,-435.92970156,0.00015,2]
[338338449,1726513840080,-13316.1104248,0.00015,2]
[338338660,1726513842834,-550.17857914,0.00015,2]
[338338666,1726513842881,-603.62491081,0.00015,2]
[338338779,1726513843979,-382.92113158,0.00015,2]
[338338781,1726513843990,-1109.25964547,0.00015,2]
[338338783,1726513844001,-1503.0,0.00015,2]
[338338785,1726513844014,-125061.04129998,0.00015,2]
[338338787,1726513844022,-753.0,0.00015,4]
[338338788,1726513844031,-15012.0,0.00015,10]
[338338790,1726513844040,-262474.2031228,0.00015,2]
[338338792,1726513844049,-1300.0,0.00015,5]
[338338794,1726513844058,-80065.83581884,0.00015,2]
[338338796,1726513844069,-642.70249532,0.00015,2]
[338338934,1726513845800,-397.40700856,0.00014829,2]
[338338935,1726513845809,-4242.59299144,0.00015,2]
[338338936,1726513845821,-876.37769436,0.00015,2]
[338339013,1726514008827,500.0,0.00025111,120]
[338339014,1726514009272,600.0,0.00025611,120]
[338339015,1726514014556,400.0,0.00025111,120]
[338339016,1726514019142,500.0,0.00025111,120]
[338339017,1726514032909,200.0,0.00025111,120]
[338339018,1726514118111,310.05,0.00012033,2]
[338339019,1726514371777,155.36,0.00010959,2]
[338339020,1726514395927,150.0,0.00026,60]
[338339022,1726514694372,532.47,0.00026,60]
[338339026,1726514707961,497271.96366975,0.00013,2]
[338339027,1726514718876,501.24824967,0.00011,2]
[338339028,1726514718905,548.75175033,0.00011,2]
[338339030,1726514729277,33595.23457263,0.000101,2]
[338339031,1726514729475,16898.3532772,0.000101,2]
[338339032,1726514792446,154.43743077,0.00011386,2]
[338339033,1726514792467,154.43743077,0.00011386,2]
[338339034,1726514792488,8.03513846,0.00011386,2]
[338339038,1726514878613,150.91620855,0.00012,2]
[338339039,1726514878634,150.91620855,0.00012,2]
[338339040,1726514878653,150.91620855,0.00012,2]
[338339041,1726514878673,150.91620855,0.00012,2]
[338339042,1726514878692,150.91620855,0.00012,2]
[338339043,1726514878712,150.91620855,0.00012,2]
[338339044,1726514878731,150.91620855,0.00012,2]
[338339045,1726514878751,150.91620855,0.00012,2]
[338339046,1726514878770,150.91620855,0.00012,2]
[338339047,1726514878790,150.91620855,0.00012,2]
[338339048,1726514878810,150.91620855,0.00012,2]
[338339049,1726514878829,150.91620855,0.00012,2]
[338339050,1726514878849,150.91620855,0.00012,2]
[338339051,1726514878868,150.91620855,0.00012,2]
[338339052,1726514878888,150.91620855,0.00012,2]
[338339053,1726514878907,150.91620855,0.00012,2]
[338339054,1726514878927,150.91620855,0.00012,2]
[338339055,1726514878946,150.91620855,0.00012,2]
[338339056,1726514878966,150.91620855,0.00012,2]
[338339057,1726514878986,150.91620855,0.00012,2]
[338339058,1726514879005,150.91620855,0.00012,2]
[338339059,1726514879025,150.91620855,0.00012,2]
[338339060,1726514879044,150.91620855,0.00012,2]
[338339061,1726514879067,150.91620855,0.00012,2]
[338339062,1726514879091,150.91620855,0.00012,2]
[338339063,1726514879115,150.91620855,0.00012,2]
[338339064,1726514879137,150.91620855,0.00012,2]
[338339065,1726514879157,150.91620855,0.00012,2]
[338339066,1726514879177,150.91620855,0.00012,2]
[338339067,1726514879196,150.91620855,0.00012,2]
[338339068,1726514879216,150.91620855,0.00012,2]
[338339069,1726514879237,4155.8011947,0.00012,2]
[338339072,1726514911921,1495.51669266,0.00026,60]
[338339087,1726515006330,-164.47,0.00012653,2]
[338339088,1726515006358,-450.0,0.00012663,2]
[338339089,1726515006386,-173.94821907,0.00012741,2]
[338339092,1726515031920,-0.18178093,0.00012741,2]
[338339093,1726515031930,-184.44822387,0.000128,2]
[338339094,1726515031939,-296.0,0.0001284,2]
[338339095,1726515031948,-300.0,0.00012899,2]
[338339096,1726515031958,-150.0,0.00012899,2]
[338339097,1726515031967,-2769.26675491,0.000129,2]
[338339098,1726515031978,-725.23915835,0.000129,2]
[338339099,1726515031989,-153.36419615,0.000129,2]
[338339100,1726515031998,-87.61331019,0.000129,2]
[338339101,1726515032008,-238.11845934,0.000129,2]
[338339102,1726515032017,-185.73578068,0.000129,2]
[338339103,1726515032027,-318.02686058,0.000129,2]
[338339104,1726515032038,-4522.06617273,0.000129,2]
[338339105,1726515032049,-3278.48738234,0.000129,2]
[338339106,1726515032058,-352.56822616,0.000129,2]
[338339107,1726515032067,-653.75833648,0.000129,2]
[338339108,1726515032076,-500.0,0.00012973,2]
[338339109,1726515032085,-157.25,0.0001299,2]
[338339110,1726515032095,-171.43045552,0.00012999,2]
[338339111,1726515032104,-500.0,0.00012999,2]
[338339112,1726515032116,-500.0,0.00012999,2]
[338339113,1726515032125,-500.0,0.00012999,2]
[338339114,1726515032134,-500.0,0.00012999,2]
[338339115,1726515032144,-271.43116534,0.00012999,2]
[338339116,1726515032155,-228.56883466,0.00012999,2]
[338339117,1726515032165,-645.26935308,0.00012999,2]
[338339118,1726515032174,-3801.7567656,0.00013,2]
[338339119,1726515032184,-5509.13788547,0.00013,2]
[338339120,1726515032195,-363.76455997,0.00013,2]
[338339121,1726515032206,-672.3424,0.00013,2]
[338339123,1726515032217,-637.70410917,0.00013,2]
[338339125,1726515032228,-5236.44719773,0.00013,2]
[338339127,1726515032240,-784.34351086,0.00013,2]
[338339130,1726515032254,-1299.333284,0.00013,2]
[338339132,1726515032265,-1367.57781629,0.00013,2]
[338339135,1726515032283,-120437.91107043,0.00013,2]
[338339137,1726515032294,-477.20950496,0.00013,2]
[338339139,1726515032304,-251.35461498,0.00013,2]
[338339141,1726515032315,-10778.66962938,0.00013,2]
[338339142,1726515032326,-5181.92052037,0.00013,2]
[338339144,1726515032337,-6959.30203298,0.00013,2]
[338339146,1726515032348,-844.4503927,0.00013,2]
[338339147,1726515032366,-2207.62085434,0.00013,2]
[338339151,1726515037958,-1335.40626258,0.00013,2]
[338339152,1726515037969,-1239.22320358,0.00013,2]
[338339155,1726515038074,-7546.42093955,0.00013,2]
[338339156,1726515038086,-902.63081299,0.00013,2]
[338339157,1726515038097,-785.23100942,0.00013,2]
[338339158,1726515038108,-576.87446552,0.00013,2]
[338339159,1726515038119,-531.06930366,0.00013,2]
[338339160,1726515038130,-647.65499597,0.00013,2]
[338339161,1726515038141,-17726.71223765,0.00013,2]
[338339162,1726515038152,-615.002,0.00013,2]
[338339163,1726515038163,-250.485,0.00013,2]
[338339164,1726515038242,-112772.62470184,0.00013,2]
[338339165,1726515038252,-1131795.09041347,0.00013,2]
[338339166,1726515038263,-282.75145112,0.00013,2]
[338339171,1726515038540,-421.399227,0.00013,2]
[338339172,1726515038551,-918.803945,0.00013,2]
[338339173,1726515038562,-598.46194056,0.00013,2]
[338339288,1726515040081,-687.02021086,0.00013,2]
[338339290,1726515040092,-1007.52312096,0.00013,2]
[338339292,1726515040104,-1383.75,0.00013,2]
[338339294,1726515040117,-477.21,0.00013,2]
[338339296,1726515040128,-625.96902228,0.00013,2]
[338339298,1726515040142,-359.18974162,0.00013,2]
[338339301,1726515040153,-2904.25943848,0.00013,2]
[338339304,1726515040176,-719.26763437,0.00013,2]
[338339306,1726515040188,-395.92311807,0.00013,2]
[338339353,1726515043983,-300.0,0.00013,2]
[338339354,1726515044007,-3022.24876524,0.00013,2]
[338339355,1726515044018,-412548.6292,0.00013,2]
[338339356,1726515067510,500.0,0.000125,4]
[338339357,1726515069666,1100.0,0.000126,4]
[338339358,1726515114515,150.0,0.00012612,2]
[338339359,1726515114539,42.1,0.00012612,2]
[338339360,1726515145352,250.0,0.00012612,2]
[338339361,1726515147811,150.0,0.0001011,2]
[338339365,1726515295991,150.0,0.0001074,2]
[338339366,1726515296012,150.0,0.0001074,2]
[338339367,1726515296033,17.87,0.0001074,2]
[338339368,1726515334393,150.0,0.00012569,2]
[338339369,1726515341531,150.0,0.00012428,2]
[338339370,1726515341551,100.0,0.00012428,2]
[338339371,1726515402833,150.0,0.00012407,2]
[338339372,1726515402853,150.0,0.00012407,2]
[338339373,1726515402873,150.0,0.00012407,2]
[338339374,1726515402894,150.0,0.00012407,2]
[338339375,1726515402913,150.0,0.00012407,2]
[338339376,1726515402933,150.0,0.00012407,2]
[338339377,1726515402953,150.0,0.00012407,2]
[338339378,1726515402974,150.0,0.00012407,2]
[338339379,1726515402994,150.0,0.00012407,2]
[338339380,1726515403014,150.0,0.00012407,2]
[338339381,1726515459937,150.0,0.00012529,2]
[338339382,1726515459958,150.0,0.00012529,2]
[338339383,1726515459979,150.0,0.00012529,2]
[338339384,1726515460000,150.0,0.00012529,2]
[338339385,1726515460020,150.0,0.00012529,2]
[338339386,1726515460041,150.0,0.00012529,2]
[338339387,1726515460062,100.0,0.00012529,2]
[338339388,1726515468756,150.0,0.00012571,2]
[338339389,1726515468776,150.0,0.00012571,2]
[338339390,1726515468796,150.0,0.00012571,2]
[338339391,1726515468817,150.0,0.00012571,2]
[338339392,1726515468837,135.22,0.00012571,2]
[338339393,1726515473130,150.0,0.00010959,2]
[338339394,1726515473154,150.0,0.00010959,2]
[338339395,1726515483785,150.0,0.00010959,2]
[338339396,1726515483805,150.0,0.00010959,2]
[338339397,1726515494393,150.0,0.00010959,2]
[338339398,1726515494414,150.0,0.00010959,2]
[338339400,1726515505287,150.0,0.00010959,2]
[338339401,1726515505308,150.0,0.00010959,2]
[338339402,1726515515858,150.0,0.00010959,2]
[338339403,1726515515878,150.0,0.00010959,2]
[338339404,1726515562624,150.0,0.00012487,2]
[338339405,1726515562646,150.0,0.00012487,2]
[338339406,1726515562667,150.0,0.00012487,2]
[338339407,1726515562700,150.0,0.00012487,2]
[338339408,1726515562720,150.0,0.00012487,2]
[338339409,1726515562741,150.0,0.00012487,2]
[338339410,1726515562762,150.0,0.00012487,2]
[338339411,1726515562783,150.0,0.00012487,2]
[338339412,1726515581073,150.0,0.00010959,2]
[338339413,1726515581093,2.2,0.00010959,2]
[338339414,1726515637283,150.0,0.00012363,2]
[338339415,1726515637312,956.4,0.00012363,2]
[338339416,1726515646212,250.0,0.00012405,2]
[338339417,1726515707081,150.0,0.000126,2]
[338339418,1726515707106,150.0,0.000126,2]
[338339419,1726515707125,24.70924983,0.000126,2]
[338339420,1726515712611,324.70924982,0.00012612,2]
[338339421,1726515717016,150.0,0.00012623,2]
[338339422,1726515717038,150.0,0.00012623,2]
[338339423,1726515717058,24.70924982,0.00012623,2]
[338339424,1726515799537,191.3,0.00012469,2]
[338339425,1726515799790,191.3,0.00012472,2]
[338339426,1726515800183,191.3,0.00012476,2]
[338339427,1726515800404,191.3,0.00012479,2]
[338339428,1726515800826,191.3,0.00012482,2]
[338339429,1726515801257,191.3,0.00012485,2]
[338339430,1726515801488,191.3,0.00012489,2]
[338339431,1726515801714,150.0,0.00012492,2]
[338339432,1726515801741,41.3,0.00012492,2]
[338339433,1726515801958,150.0,0.00012495,2]
[338339434,1726515801980,41.3,0.00012495,2]
[338339435,1726515802189,108.7,0.00012499,2]
[338339436,1726515802211,82.6,0.00012499,2]
[338339437,1726515802458,67.4,0.00012502,2]
[338339438,1726515802479,123.9,0.00012502,2]
[338339439,1726515802666,26.1,0.00012505,2]
[338339440,1726515802686,150.0,0.00012505,2]
[338339441,1726515802707,15.2,0.00012505,2]
[338339442,1726515802902,191.3,0.00012508,2]
[338339443,1726515803109,53.63259727,0.00012512,2]
[338339444,1726515803132,137.66740273,0.00012512,2]
[338339445,1726515803321,191.3,0.00012515,2]
[338339446,1726515803559,191.3,0.00012518,2]
[338339447,1726515803791,191.3,0.00012522,2]
[338339448,1726515804032,191.3,0.00012525,2]
[338339449,1726515804249,191.3,0.00012528,2]
[338339450,1726515804441,500.0,0.00025,120]
[338339451,1726515804470,191.3,0.00012531,2]
[338339452,1726515807164,250.0,0.00012548,2]
[338339453,1726515809667,500.0,0.00026,120]
[338339454,1726515814388,500.0,0.00025443,120]
[338339455,1726515826935,200.0,0.000245,120]
[338339456,1726515834820,2919.84,0.00012518,2]
[338339457,1726515835358,342.9,0.000106,2]
[338339458,1726515853178,250.0,0.00012393,2]
[338339459,1726515887177,2000.0,0.00012395,2]
[338339460,1726515888527,1217.79,0.00012552,2]
[338339461,1726515914392,230.27365888,0.00011688,2]
[338339462,1726515938301,1233.92,0.00012456,2]
[338339463,1726515993618,200.0,0.00012437,2]
[338339464,1726516002438,150.0,0.00012436,2]
[338339467,1726516035914,4345.02,0.00012508,2]
[338339468,1726516047167,400.0,0.000125,4]
[338339469,1726516049274,900.0,0.000126,4]
[338339470,1726516073076,2478.79,0.00012364,2]
[338339471,1726516098577,450.0,0.00012414,2]
[338339472,1726516102981,154.08,0.00010959,2]